bitfinex/quotes_SOLUSD_20250518
["timestamp","ask_amount","ask_price","bid_price","bid_amount"]
[1747579456128,23.05899696,173.84,173.8,28.41364393]
[1747579456335,23.05899696,173.87,173.8,28.41364393]
[1747579457219,24.49720019,173.87,173.8,28.41364393]
[1747579457826,24.49720019,173.87,173.81,3.23985745]
[1747579458228,23.05899696,173.86,173.81,3.23985745]
[1747579459145,23.05899696,173.86,173.8,28.41364393]
[1747579459452,23.05899696,173.85,173.8,28.41364393]
[1747579460938,23.05899696,173.87,173.8,42.79799375]
[1747579462026,23.05899696,173.86,173.8,28.41364393]
[1747579462442,23.05899696,173.86,173.8,5.75364393]
[1747579462632,23.05899696,173.86,173.8,28.41364393]
[1747579462953,23.05899696,173.85,173.8,28.41364393]
[1747579463335,7.18910554,173.89,173.8,22.66]
[1747579463336,23.05899696,173.84,173.8,22.66]
[1747579463652,23.05899696,173.84,173.8,28.41362025]
[1747579463653,14.43044092,173.84,173.8,28.41362025]
[1747579464636,14.43044092,173.84,173.79,28.41406981]
[1747579464836,14.43044092,173.84,173.79,54.41406981]
[1747579465323,14.43044092,173.85,173.82,26.0]
[1747579465552,40.37485135,173.92,173.82,26.0]
[1747579465553,14.43044092,173.86,173.82,26.0]
[1747579465931,14.43044092,173.87,173.82,26.0]
[1747579466845,7.18856085,173.9,173.82,26.0]
[1747579467055,14.43044092,173.88,173.83,5.75274693]
[1747579468656,14.43044092,173.89,173.83,5.75274693]
[1747579469651,5.75020736,173.91,173.83,5.75274693]
[1747579469952,14.43044092,173.89,173.83,5.75274693]
[1747579472956,15.86840506,173.88,173.82,31.75298454]
[1747579473144,14.43044092,173.87,173.82,54.39298454]
[1747579473346,14.43044092,173.86,173.82,54.39298454]
[1747579474177,14.43044092,173.87,173.82,54.39298454]
[1747579474541,14.43044092,173.88,173.82,54.39298454]
[1747579475965,14.43044092,173.87,173.82,54.39298454]
[1747579476168,14.43044092,173.86,173.82,54.39298454]
[1747579477876,1.43817047,173.92,173.82,54.39298454]
[1747579478167,14.43044092,173.89,173.82,54.39298454]
[1747579478371,5.75010062,173.91,173.82,54.39298454]
[1747579478548,15.86861139,173.92,173.82,68.77567928]
[1747579478750,14.43044092,173.92,173.82,68.77567928]
[1747579478950,14.43044092,173.92,173.82,149.47567928]
[1747579479267,14.43044092,173.92,173.83,3.23604025]
[1747579479485,14.43044092,173.91,173.83,3.23604025]
[1747579480870,14.43044092,173.91,173.87,26.0]
[1747579482149,14.43044092,173.91,173.86,5.75144398]
[1747579482350,14.43044092,173.91,173.86,31.75144398]
[1747579483881,14.43044092,173.92,173.86,31.75144398]
[1747579484475,14.43044092,173.91,173.87,3.2470786]
[1747579484686,14.43044092,173.9,173.87,3.2470786]
[1747579485476,7.18771043,173.92,173.87,3.2470786]
[1747579485795,6.419,173.95,173.89,26.0]
[1747579486092,14.43044092,173.94,173.89,31.7505073]
[1747579486765,14.43044092,173.93,173.89,31.75065973]
[1747579487097,6.1664,173.99,173.89,46.12756466]
[1747579487389,14.43044092,173.97,173.9,3.245808]
[1747579487593,6.1664,173.99,173.91,22.62]
[1747579487818,14.43044092,173.96,173.91,22.62]
[1747579488276,14.43044092,173.96,173.92,5.74977]
[1747579488475,14.43044092,173.96,173.91,28.37004475]
[1747579488784,14.43044092,173.97,173.92,26.0]
[1747579489287,14.43044092,173.97,173.92,29.245808]
[1747579489893,14.43044092,173.97,173.92,34.99541202]
[1747579490393,14.43044092,173.96,173.92,29.245808]
[1747579490765,14.43044092,173.96,173.93,3.245808]
[1747579491574,1.43726498,174.02,173.93,3.245808]
[1747579491777,14.43044092,174.0,173.95,26.0]
[1747579491973,5.74704052,174.01,173.95,26.0]
[1747579491974,14.43044092,173.99,173.95,26.0]
[1747579492703,14.43044092,173.99,173.95,31.74863483]
[1747579492886,14.43044092,173.98,173.95,26.0]
[1747579493199,14.43044092,173.99,173.95,31.74876644]
[1747579493706,5.74655676,174.02,173.95,31.74876644]
[1747579494000,14.43044092,174.01,173.95,31.74876644]
[1747579494796,14.43044092,173.98,173.95,26.0]
[1747579495100,18.64964886,174.02,173.95,26.0]
[1747579495101,14.43044092,173.99,173.96,5.66623081]
[1747579495272,14.43044092,173.99,173.97,26.0]
[1747579495689,14.43044092,173.99,173.96,29.24021553]
[1747579496095,14.43044092,173.98,173.96,3.24021553]
[1747579496883,5.74720121,174.0,173.96,3.24021553]
[1747579497198,14.43044092,173.99,173.95,1.67778604]
[1747579497788,14.43044092,173.99,173.95,7.42656371]
[1747579497986,14.43044092,173.99,173.95,5.74877767]
[1747579498700,14.43044092,173.99,173.94,33.47401139]
[1747579498898,14.43044092,173.99,173.94,27.72495724]
[1747579499104,14.43044092,173.98,173.94,27.72495724]
[1747579499781,14.43044092,173.97,173.94,27.72495724]
[1747579499983,14.43044092,173.96,173.95,26.0]
[1747579500290,14.43044092,173.97,173.95,26.0]
[1747579501285,5.74752833,173.99,173.95,26.0]
[1747579501516,14.43044092,173.99,173.95,31.74869199]
[1747579501807,14.43044092,174.02,173.95,31.74869199]
[1747579502108,14.43044092,174.01,173.95,31.74869199]
[1747579502486,5.74638021,174.03,173.95,31.74869199]
[1747579502685,5.74638021,174.03,173.95,112.44869199]
[1747579503007,14.43044092,174.04,173.95,126.82063795]
[1747579503192,14.43044092,174.03,173.95,126.82063795]
[1747579503816,14.43044092,174.03,173.96,3.2355201]
[1747579503980,14.43044092,174.02,173.98,26.0]
[1747579504175,14.43044092,174.01,173.99,26.0]
[1747579504380,14.43044092,174.0,173.99,26.0]
[1747579504993,14.43044092,174.01,173.99,27.72446154]
[1747579506002,14.43044092,174.0,173.99,1.72446154]
[1747579506202,5.74646592,174.02,173.99,1.72446154]
[1747579506399,14.43044092,174.0,173.99,1.72446154]
[1747579506892,14.43044092,174.01,173.99,1.72446154]
[1747579507301,1.43698623,174.03,173.99,1.72446154]
[1747579507493,14.43044092,174.03,173.99,1.72446154]
[1747579507996,14.43044092,174.02,173.99,1.72446154]
[1747579508720,14.43044092,174.03,173.99,1.72446154]
[1747579509104,14.43044092,174.01,173.99,1.72446154]
[1747579509718,14.43044092,174.0,173.99,1.72446154]
[1747579509916,20.17756735,174.0,173.99,1.72446154]
[1747579510296,14.43044092,174.0,173.99,1.72446154]
[1747579510848,20.17732694,174.01,173.99,1.72446154]
[1747579510995,14.43044092,174.0,173.99,1.72446154]
[1747579512016,20.17756735,174.0,173.99,1.72446154]
[1747579512224,21.61464012,174.0,173.99,1.72446154]
[1747579513422,54.6947299,174.0,173.99,1.72446154]
[1747579514014,54.6947299,174.0,173.85,24.1277]
[1747579514015,51.05154886,173.96,173.85,24.1277]
[1747579514206,14.43044092,173.88,173.86,22.54]
[1747579514530,2.98216165,173.93,173.86,22.54]
[1747579514724,1.43796165,173.93,173.86,22.54]
[1747579514912,45.17111656,173.96,173.86,22.54]
[1747579514913,14.43044092,173.94,173.89,26.0]
[1747579515299,14.43044092,173.93,173.89,26.0]
[1747579515519,14.43044092,173.93,173.86,22.54]
[1747579515911,14.43044092,173.93,173.89,26.0]
[1747579516519,14.43044092,173.94,173.89,31.75057455]
[1747579517030,13.58808227,173.96,173.89,31.75057455]
[1747579517197,14.43044092,173.94,173.89,31.75057455]
[1747579517709,13.58790585,173.96,173.89,26.0]
[1747579518036,14.43044092,173.94,173.89,26.0]
[1747579518200,14.43044092,173.92,173.89,26.0]
[1747579518526,14.43044092,173.92,173.86,28.2914374]
[1747579518527,14.43044092,173.9,173.86,26.0]
[1747579519108,1.43758392,173.94,173.86,26.0]
[1747579519312,14.43044092,173.92,173.86,31.75154366]
[1747579519825,14.43044092,173.93,173.86,31.75154366]
[1747579520224,12.15040584,173.96,173.89,31.75044812]
[1747579520396,14.43044092,173.96,173.89,31.75044812]
[1747579520839,7.18579751,173.97,173.89,31.75044812]
[1747579521036,14.43044092,173.96,173.89,31.75044812]
[1747579521917,14.43044092,173.97,173.9,3.24461427]
[1747579522341,14.43044092,173.97,173.91,5.75010062]
[1747579522531,14.43044092,173.97,173.92,22.52]
[1747579522947,7.18494424,173.99,173.93,26.0]
[1747579522948,15.86784808,173.99,173.93,26.0]
[1747579523153,15.86771908,174.01,173.95,26.0]
[1747579523523,14.43044092,173.99,173.95,26.0]
[1747579523850,14.43044092,174.0,173.95,26.0]
[1747579524219,7.18321057,174.03,173.96,5.74844791]
[1747579524556,14.43044092,174.03,173.96,5.74844791]
[1747579525262,14.43044092,174.03,173.97,3.24465006]
[1747579525641,14.43044092,174.03,173.98,5.7477871]
[1747579526531,13.86530464,174.05,173.96,5.74844791]
[1747579526736,1.43685266,174.04,173.96,5.74844791]
[1747579526955,14.43044092,174.02,173.96,5.74844791]
[1747579527130,14.43044092,174.02,173.95,112.44876982]
[1747579527540,5.74613572,174.03,173.95,112.44876982]
[1747579527861,14.43044092,174.02,173.96,3.24443212]
[1747579528356,5.74613572,174.03,173.96,3.24443212]
[1747579528534,14.43044092,174.01,173.96,3.24443212]
[1747579528737,14.43044092,174.01,173.97,3.24443212]
[1747579529134,1.43694285,174.02,173.97,3.24443212]
[1747579529135,14.43044092,174.0,173.97,3.24443212]
[1747579529944,7.1835225,174.03,173.97,3.24443212]
[1747579530143,1.43707193,174.03,173.97,5.74805021]
[1747579530529,14.43044092,174.02,173.97,5.74805021]
[1747579531459,14.43044092,174.02,173.98,3.24472272]
[1747579532250,14.43044092,174.0,173.98,3.24472272]
[1747579532639,14.43044092,174.0,173.95,54.22853363]
[1747579532839,14.43044092,174.01,173.95,54.22853363]
[1747579533974,14.43044092,174.01,173.96,8.99448961]
[1747579534630,14.43044092,174.0,173.96,8.99456147]
[1747579535132,14.43044092,174.01,173.96,8.99456147]
[1747579535350,14.43044092,174.01,173.97,3.24612374]
[1747579536042,1.43705186,174.04,173.97,8.9941545]
[1747579536229,14.43044092,174.02,173.97,8.9941545]
[1747579536659,14.43044092,174.01,173.97,8.9941545]
[1747579537260,14.43044092,174.02,173.97,8.9941545]
[1747579537453,14.43044092,174.02,173.98,3.24612374]
[1747579537943,14.43044092,174.02,173.98,8.99384986]
[1747579538149,7.18294461,174.04,173.98,8.99384986]
[1747579538335,14.43044092,174.02,173.98,8.99384986]
[1747579538538,1.43705186,174.04,173.99,3.24612374]
[1747579538747,14.43044092,174.02,173.99,3.24612374]
[1747579539060,1.43705186,174.04,173.99,3.24612374]
[1747579539244,8.1198,174.05,173.99,3.24612374]
[1747579539430,13.86539024,174.05,173.99,3.24612374]
[1747579539631,14.43044092,174.03,173.99,3.24612374]
[1747579539932,14.43044092,174.02,173.99,8.99353376]
[1747579540134,14.43044092,174.04,173.99,8.99353376]
[1747579540430,14.69903302,174.09,174.02,26.0]
[1747579540633,27.69277381,174.09,174.02,26.0]
[1747579541335,14.43044092,174.08,174.02,26.0]
[1747579541539,14.43044092,174.08,174.02,48.46]
[1747579541740,27.69277381,174.09,174.03,3.24612374]
[1747579541949,27.69277381,174.09,174.04,5.74580556]
[1747579542259,20.0860994,174.12,174.04,5.74580556]
[1747579542260,7.17990496,174.12,174.04,5.74580556]
[1747579542464,14.43044092,174.1,174.04,5.74580556]
[1747579542960,14.43044092,174.09,174.04,5.74580556]
[1747579544460,14.43044092,174.09,174.05,3.24612374]
[1747579545764,14.43044092,174.09,174.04,5.74580556]
[1747579545765,14.43044092,174.06,174.02,48.46]
[1747579545964,14.43044092,174.06,174.01,5.74669585]
[1747579546261,14.43044092,174.06,174.01,31.74669585]
[1747579546464,1.43629401,174.08,174.01,31.74669585]
[1747579546652,14.43044092,174.07,174.0,5.74712643]
[1747579547247,14.43044092,174.07,174.01,26.0]
[1747579547447,14.43044092,174.07,174.01,29.23780419]
[1747579548387,14.43044092,174.08,174.01,29.23780419]
[1747579548666,14.43044092,174.08,174.02,3.23780419]
[1747579548865,20.17501871,174.08,174.02,34.98402939]
[1747579549256,14.43044092,174.08,174.02,34.98402939]
[1747579549772,1.4364146,174.11,174.02,34.98402939]
[1747579549971,14.43044092,174.09,174.02,115.68402939]
[1747579550152,18.64964886,174.1,174.02,34.98402939]
[1747579550357,14.43044092,174.07,174.03,3.23780419]
[1747579551652,14.43044092,174.07,174.03,8.9839041]
[1747579551861,5.74420984,174.09,174.03,8.9839041]
[1747579552072,14.43044092,174.08,174.03,5.74609991]
[1747579553276,5.74450189,174.08,174.03,5.74609991]
[1747579553455,14.43044092,174.07,174.03,5.74609991]
[1747579553644,20.17494281,174.08,174.03,5.74609991]
[1747579553852,14.43044092,174.08,174.03,5.74609991]
[1747579554248,7.1800008,174.11,174.03,5.74609991]
[1747579554577,14.43044092,174.11,174.06,26.0]
[1747579554751,24.39248467,174.13,174.06,26.0]
[1747579554952,24.39248467,174.13,174.06,31.74498427]
[1747579555163,8.97354562,174.14,174.06,31.74498427]
[1747579555345,13.27989656,174.14,174.06,31.74498427]
[1747579555546,14.43044092,174.09,174.07,26.0]
[1747579555774,1.43623023,174.12,174.07,26.0]
[1747579556158,14.43044092,174.09,174.07,26.0]
[1747579557581,14.43044092,174.1,174.07,26.0]
[1747579557952,14.43044092,174.09,174.07,26.0]
[1747579558456,14.43044092,174.13,174.06,48.4]
[1747579559078,14.43044092,174.12,174.07,5.7448153]
[1747579559666,1.43591498,174.14,174.07,5.7448153]
[1747579559872,14.43044092,174.12,174.07,5.7448153]
[1747579560072,18.64964886,174.16,174.07,5.7448153]
[1747579560356,14.43044092,174.12,174.07,5.7448153]
[1747579560762,5.74294117,174.13,174.07,5.7448153]
[1747579560981,14.43044092,174.11,174.07,5.7448153]
[1747579561172,1.43598686,174.15,174.07,5.7448153]
[1747579561173,14.43044092,174.12,174.07,5.7448153]
[1747579561758,5.74223323,174.15,174.07,5.7448153]
[1747579562075,14.43044092,174.13,174.07,5.7448153]
[1747579562764,5.74191666,174.16,174.07,5.7448153]
[1747579562961,14.43044092,174.13,174.08,3.22321744]
[1747579563171,5.74191666,174.16,174.08,3.22321744]
[1747579563397,14.43044092,174.13,174.09,5.74415532]
[1747579563771,5.74147191,174.18,174.12,26.0]
[1747579564089,14.43044092,174.15,174.12,26.0]
[1747579564286,15.00679006,174.19,174.12,26.0]
[1747579564486,14.43044092,174.16,174.12,26.0]
[1747579564675,14.43044092,174.14,174.12,26.0]
[1747579564873,14.43044092,174.13,174.09,5.74415532]
[1747579565271,14.43044092,174.14,174.1,31.74375328]
[1747579565486,5.74178695,174.17,174.11,26.0]
[1747579566196,5.74120396,174.18,174.11,26.0]
[1747579566506,14.43044092,174.15,174.11,26.0]
[1747579567076,5.74120396,174.18,174.11,26.0]
[1747579567284,15.00672931,174.19,174.11,31.74341511]
[1747579567584,14.43044092,174.16,174.11,31.74341511]
[1747579567961,15.00672931,174.19,174.11,31.74341511]
[1747579568384,14.43044092,174.16,174.11,31.74341511]
[1747579568586,15.00672931,174.19,174.11,31.74341511]
[1747579568889,14.43044092,174.16,174.11,31.74341511]
[1747579569262,1.43560614,174.21,174.11,31.74341511]
[1747579569599,5.73955149,174.23,174.12,6.4108]
[1747579569894,1.43557451,174.26,174.17,1.5976]
[1747579570201,9.41473166,174.29,174.17,1.5976]
[1747579570402,5.73700575,174.31,174.17,1.5976]
[1747579570603,14.43044092,174.29,174.21,26.0]
[1747579570787,14.43044092,174.29,174.25,26.0]
[1747579571094,7.17133732,174.32,174.25,26.0]
[1747579571270,14.43044092,174.29,174.25,26.0]
[1747579571467,14.43044092,174.26,174.22,22.34]
[1747579571668,14.43044092,174.23,174.21,26.0]
[1747579571972,14.43044092,174.22,174.16,28.08180863]
[1747579572183,14.43044092,174.18,174.14,5.74250602]
[1747579572473,1.43534604,174.23,174.17,26.0]
[1747579572683,14.43044092,174.19,174.17,26.0]
[1747579573080,14.43044092,174.21,174.16,26.0]
[1747579573265,14.43044092,174.21,174.17,5.74140737]
[1747579573467,14.43044092,174.2,174.18,26.0]
[1747579573686,14.43044092,174.19,174.18,26.0]
[1747579573898,14.43044092,174.2,174.18,26.0]
[1747579574076,1.43534604,174.23,174.18,26.0]
[1747579574279,14.43044092,174.21,174.18,26.0]
[1747579574793,14.43044092,174.23,174.18,26.0]
[1747579574966,5.73901122,174.25,174.18,5.74110592]
[1747579575171,14.43044092,174.23,174.18,5.74110592]
[1747579575672,7.9795,174.29,174.21,26.0]
[1747579575871,14.43044092,174.27,174.21,26.0]
[1747579576687,14.43044092,174.26,174.21,26.0]
[1747579577115,13.59097716,174.29,174.21,31.74009832]
[1747579577312,5.73728702,174.3,174.21,31.74009832]
[1747579577471,7.17205789,174.31,174.21,33.33769832]
[1747579577672,14.43044092,174.3,174.21,47.68819484]
[1747579577872,14.43044092,174.26,174.21,33.33769832]
[1747579578189,1.43460765,174.3,174.21,31.74009832]
[1747579578382,14.43044092,174.27,174.21,31.74009832]
[1747579578585,1.43460765,174.3,174.21,31.74009832]
[1747579579106,7.17214647,174.3,174.21,31.74009832]
[1747579579482,14.43044092,174.26,174.21,31.74009832]
[1747579579683,14.43044092,174.27,174.21,31.74009832]
[1747579579993,14.43044092,174.28,174.21,31.74009832]
[1747579580187,5.73697043,174.31,174.21,31.74009832]
[1747579580387,13.71602659,174.33,174.21,31.74009832]
[1747579580594,14.43044092,174.29,174.21,112.44009832]
[1747579581004,14.43044092,174.27,174.21,126.79059484]
[1747579581491,14.43044092,174.28,174.21,126.79059484]
[1747579581901,5.73690551,174.31,174.21,126.79059484]
[1747579582289,14.43044092,174.28,174.21,126.79059484]
[1747579582480,14.43044092,174.27,174.21,112.44009832]
[1747579582895,5.73694638,174.31,174.21,112.44009832]
[1747579583106,14.43044092,174.28,174.21,112.44009832]
[1747579583713,14.43044092,174.27,174.21,112.44009832]
[1747579583919,14.43044092,174.28,174.21,112.44009832]
[1747579584322,5.73724153,174.3,174.21,112.44009832]
[1747579584617,14.43044092,174.28,174.21,112.44009832]
[1747579584914,14.43044092,174.27,174.21,112.44009832]
[1747579585413,5.73690551,174.31,174.21,112.44009832]
[1747579585730,14.43044092,174.3,174.21,126.79059484]
[1747579585882,13.71591532,174.33,174.21,126.79059484]
[1747579585883,14.43044092,174.31,174.21,126.79059484]
[1747579586085,1.43445019,174.3,174.21,86.44009832]
[1747579586310,14.43044092,174.28,174.21,86.44009832]
[1747579586485,1.43445019,174.3,174.21,5.74009832]
[1747579586684,14.43044092,174.27,174.21,5.74009832]
[1747579586887,1.43468112,174.32,174.21,5.74009832]
[1747579587106,14.43044092,174.28,174.22,26.0]
[1747579587410,14.43044092,174.29,174.23,5.73953968]
[1747579587817,14.43044092,174.26,174.22,112.43982964]
[1747579588114,14.43044092,174.25,174.22,106.7]
[1747579588493,14.43044092,174.24,174.22,26.0]
[1747579588709,1.43480816,174.29,174.22,26.0]
[1747579588908,14.43044092,174.24,174.22,26.0]
[1747579589212,1.43480816,174.29,174.22,26.0]
[1747579589412,14.43044092,174.25,174.2,28.06047005]
[1747579589593,5.73847235,174.27,174.2,48.32]
[1747579589799,14.43044092,174.24,174.2,48.32]
[1747579590313,14.43044092,174.25,174.2,48.32]
[1747579590519,5.73847235,174.27,174.2,54.06044019]
[1747579590816,14.43044092,174.27,174.2,54.06044019]
[1747579591115,14.43044092,174.28,174.23,26.0]
[1747579591315,14.43044092,174.28,174.24,5.73921028]
[1747579591539,5.73717575,174.31,174.24,5.73921028]
[1747579591715,14.43044092,174.31,174.24,5.73921028]
[1747579591914,7.9795,174.33,174.24,5.73921028]
[1747579592391,13.71578426,174.33,174.23,112.4395207]
[1747579592596,14.43044092,174.28,174.23,112.4395207]
[1747579592900,14.43044092,174.28,174.23,31.7395207]
[1747579593301,15.15030454,174.33,174.23,31.7395207]
[1747579593504,14.43044092,174.31,174.23,112.4395207]
[1747579593721,14.43044092,174.3,174.23,112.4395207]
[1747579593918,14.43044092,174.29,174.23,112.4395207]
[1747579594126,14.43044092,174.28,174.23,31.7395207]
[1747579594504,1.43450673,174.32,174.23,31.7395207]
[1747579594701,14.43044092,174.3,174.23,31.7395207]
[1747579594900,13.71578426,174.33,174.23,31.7395207]
[1747579595102,14.43044092,174.3,174.23,34.5861017]
[1747579596333,14.43044092,174.29,174.23,34.5861017]
[1747579596538,5.73696756,174.31,174.23,31.7395207]
[1747579596701,14.43044092,174.27,174.23,31.7395207]
[1747579596897,5.73696756,174.31,174.23,31.7395207]
[1747579596898,14.43044092,174.28,174.23,31.7395207]
[1747579598323,5.73730845,174.3,174.23,31.7395207]
[1747579598517,5.73698053,174.31,174.23,5.7395207]
[1747579598930,14.43044092,174.29,174.23,5.7395207]
[1747579599429,14.43044092,174.29,174.24,26.0]
[1747579599829,14.43044092,174.3,174.25,5.73888091]
[1747579600007,5.73657641,174.32,174.25,5.73888091]
[1747579600211,14.43044092,174.3,174.25,5.73888091]
[1747579600959,14.43044092,174.29,174.25,5.73888091]
[1747579601833,14.43044092,174.3,174.25,5.73888091]
[1747579602217,5.73664177,174.32,174.25,5.73888091]
[1747579602436,20.16708269,174.32,174.25,5.73888091]
[1747579602933,14.43044092,174.31,174.25,5.73888091]
[1747579603307,20.1674052,174.31,174.25,5.73888091]
[1747579603506,14.43044092,174.3,174.24,31.73916416]
[1747579603830,14.43044092,174.3,174.25,26.0]
[1747579604936,14.43044092,174.3,174.25,31.73883496]
[1747579605638,20.16770308,174.3,174.25,26.0]
[1747579606127,14.43044092,174.26,174.18,80.7]
[1747579606434,1.43506636,174.26,174.18,48.32]
[1747579606637,14.43044092,174.22,174.18,28.06114783]
[1747579607013,5.73923495,174.24,174.18,28.06114783]
[1747579607208,5.7385864,174.26,174.18,28.06114783]
[1747579607408,14.43044092,174.24,174.18,28.06114783]
[1747579607623,14.43044092,174.23,174.18,28.06114783]
[1747579607816,14.43044092,174.22,174.19,3.21182401]
[1747579608220,14.43044092,174.23,174.19,3.21182401]
[1747579608405,14.43044092,174.23,174.19,34.95252408]
[1747579608729,14.43044092,174.24,174.19,34.95252408]
[1747579609129,14.43044092,174.24,174.2,3.21182401]
[1747579609511,7.17335621,174.27,174.2,3.21182401]
[1747579609726,7.83320093,174.3,174.2,3.21182401]
[1747579609936,14.43044092,174.27,174.2,3.21182401]
[1747579610524,14.43044092,174.27,174.21,5.74019861]
[1747579611213,7.83320093,174.3,174.22,26.0]
[1747579611419,14.43044092,174.28,174.22,26.0]
[1747579611829,7.83320093,174.3,174.22,26.0]
[1747579612141,14.43044092,174.27,174.22,26.0]
[1747579612343,14.43044092,174.27,174.23,3.21182401]
[1747579612546,20.16887352,174.27,174.23,3.21182401]
[1747579612842,5.7384326,174.27,174.23,3.21182401]
[1747579613141,14.43044092,174.24,174.23,3.21182401]
[1747579613339,1.43479407,174.26,174.23,3.21182401]
[1747579613541,14.43044092,174.25,174.23,3.21182401]
[1747579613838,1.43479407,174.26,174.21,3.21182401]
[1747579614042,14.43044092,174.23,174.21,3.21182401]
[1747579614343,14.43044092,174.24,174.21,3.21182401]
[1747579614527,14.43044092,174.25,174.21,3.21182401]
[1747579615421,14.43044092,174.24,174.21,3.21182401]
[1747579615837,5.73864823,174.26,174.21,3.21182401]
[1747579616043,14.43044092,174.24,174.21,3.21182401]
[1747579616346,1.43495877,174.25,174.21,3.21182401]
[1747579616513,14.43044092,174.24,174.21,3.21182401]
[1747579616914,14.43044092,174.25,174.21,3.21182401]
[1747579617133,14.43044092,174.28,174.21,8.95201065]
[1747579617516,14.43044092,174.28,174.22,3.21182401]
[1747579617753,14.43044092,174.25,174.22,3.21182401]
[1747579617937,14.43044092,174.24,174.22,3.21182401]
[1747579618124,14.43044092,174.25,174.22,3.21182401]
[1747579618738,14.43044092,174.25,174.21,8.95183229]
[1747579619052,14.43044092,174.27,174.21,8.95183229]
[1747579619240,1.43495479,174.29,174.21,8.95183229]
[1747579619543,14.43044092,174.27,174.21,8.95183229]
[1747579620053,14.43044092,174.27,174.22,3.21182401]
[1747579620418,14.43044092,174.26,174.22,3.21182401]
[1747579620646,14.43044092,174.24,174.22,3.21182401]
[1747579621247,14.43044092,174.25,174.22,3.21182401]
[1747579621544,14.43044092,174.27,174.23,3.21182401]
[1747579621728,1.43481556,174.32,174.24,26.0]
[1747579621930,1.43481556,174.32,174.25,5.73888091]
[1747579622130,15.86525648,174.32,174.25,5.73888091]
[1747579622452,1.5609,174.33,174.25,5.73888091]
[1747579622642,11.96893039,174.34,174.28,26.0]
[1747579623170,5.73531032,174.36,174.29,3.21182401]
[1747579623538,14.43044092,174.35,174.29,3.21182401]
[1747579623720,14.43044092,174.34,174.29,3.21182401]
[1747579623925,20.16701733,174.32,174.29,3.21182401]
[1747579624237,14.43044092,174.33,174.29,3.21182401]
[1747579624845,14.43044092,174.33,174.28,3.21182401]
[1747579625928,20.16671314,174.33,174.28,3.21182401]
[1747579626445,14.43044092,174.34,174.28,8.94968717]
[1747579626637,14.43044092,174.34,174.29,3.21182401]
[1747579627442,14.43044092,174.35,174.29,8.94923092]
[1747579627833,18.64964886,174.36,174.3,3.21182401]
[1747579628027,33.08008978,174.36,174.3,3.21182401]
[1747579628227,18.64964886,174.36,174.3,3.21182401]
[1747579628936,24.3849765,174.36,174.3,3.21182401]
[1747579629140,38.81541742,174.36,174.3,8.94895543]
[1747579629642,24.3849765,174.36,174.3,8.94895543]
[1747579629939,38.81541742,174.36,174.3,8.94895543]
[1747579630142,6.233,174.38,174.3,8.94895543]
[1747579630457,5.73394495,174.4,174.31,3.21182401]
[1747579630624,14.43044092,174.39,174.31,29.21182401]
[1747579630822,14.43044092,174.38,174.31,29.21182401]
[1747579631022,14.43044092,174.37,174.31,34.94864363]
[1747579631526,14.43044092,174.37,174.32,3.21182401]
[1747579631927,5.73462547,174.38,174.32,3.21182401]
[1747579632140,14.43044092,174.37,174.32,8.94829451]
[1747579632447,20.16560387,174.37,174.32,3.21182401]
[1747579632636,14.43044092,174.36,174.32,3.21182401]
[1747579633231,14.43044092,174.36,174.3,108.73714316]
[1747579633550,5.73534205,174.36,174.3,103.0]
[1747579633756,20.16578297,174.36,174.29,48.3]
[1747579633937,38.81506932,174.37,174.29,54.03751651]
[1747579634257,14.43044092,174.36,174.29,54.03751651]
[1747579634439,38.81506932,174.37,174.29,54.03751651]
[1747579634635,18.64964886,174.37,174.3,3.21782648]
[1747579635047,14.43044092,174.38,174.3,3.21782648]
[1747579635245,14.43044092,174.39,174.32,26.0]
[1747579635637,14.43044092,174.39,174.33,5.73624734]
[1747579636439,14.43044092,174.39,174.34,3.21782648]
[1747579637058,14.43044092,174.38,174.34,3.21782648]
[1747579637258,14.43044092,174.39,174.34,3.21782648]
[1747579637456,18.64964886,174.4,174.34,3.21782648]
[1747579637759,24.38366894,174.4,174.34,8.95352965]
[1747579637964,14.43044092,174.38,174.34,3.21782648]
[1747579638141,14.43044092,174.38,174.32,26.0]
[1747579638345,14.43044092,174.37,174.32,26.0]
[1747579638554,14.43044092,174.38,174.32,26.0]
[1747579639366,14.43044092,174.38,174.32,31.73632383]
[1747579639946,14.43044092,174.37,174.29,22.3]
[1747579640148,14.43044092,174.35,174.29,103.0]
[1747579640351,14.43044092,174.35,174.29,129.0]
[1747579640548,14.43044092,174.35,174.29,106.7]
[1747579640764,14.43044092,174.34,174.29,112.43749713]
[1747579640943,26.56731034,174.37,174.28,22.28]
[1747579641141,14.43044092,174.33,174.28,48.28]
[1747579641440,5.73567501,174.35,174.28,54.01778236]
[1747579641635,14.43044092,174.34,174.29,3.21375477]
[1747579642036,5.73567501,174.35,174.29,3.21375477]